Workbook

Sheet 東京エリア需給バランス
B1: ↓2021/4/1～2022/3/31を入力
B2: 2022-01-23 | D2: 東京エリア需給バランス実績
W4: 東京エリア需要 | X4: 原子力 | Y4: 火力 | Z4: 水力 | AA4: 地熱 | AB4: バイオマス | AC4: 太陽光発電実績 | AD4: 太陽光出力制御量 | AE4: 風力発電実績 | AF4: 風力出力制御量 | AG4: 揚水 | AH4: 連系線 | AI4: 東京エリアプライス
S5: =U5&V5 -> 445840 | U5: =B2 -> 2022-01-23 | V5: 00:00:00 | W5: =VLOOKUP($S5,'area-2021'!$C$4:$P$8763,2) -> 3257 | X5: =VLOOKUP($S5,'area-2021'!$C$4:$P$8763,3) -> 0 | Y5: =VLOOKUP($S5,'area-2021'!$C$4:$P$8763,4) -> 2841 | Z5: =VLOOKUP($S5,'area-2021'!$C$4:$P$8763,5) -> 84 | AA5: =VLOOKUP($S5,'area-2021'!$C$4:$P$8763,6) -> 0 | AB5: =VLOOKUP($S5,'area-2021'!$C$4:$P$8763,7) -> 27 | AC5: =VLOOKUP($S5,'area-2021'!$C$4:$P$8763,8) -> 0 | AD5: =VLOOKUP($S5,'area-2021'!$C$4:$P$8763,9) -> 0 | AE5: =VLOOKUP($S5,'area-2021'!$C$4:$P$8763,10) -> 11 | AF5: =VLOOKUP($S5,'area-2021'!$C$4:$P$8763,11) -> 0 | AG5: =VLOOKUP($S5,'area-2021'!$C$4:$P$8763,12) -> 0 | AH5: =VLOOKUP($S5,'area-2021'!$C$4:$P$8763,13) -> 294 | AI5: =VLOOKUP($S5,'area-2021'!$C$4:$P$8763,14) -> 21.125
S6: 445840.0416666666666667 | U6: =U5 -> 2022-01-23 | V6: 01:00:00 | W6: =VLOOKUP($S6,'area-2021'!$C$4:$P$8763,2) -> 3106 | X6: =VLOOKUP($S6,'area-2021'!$C$4:$P$8763,3) -> 0 | Y6: =VLOOKUP($S6,'area-2021'!$C$4:$P$8763,4) -> 2739 | Z6: =VLOOKUP($S6,'area-2021'!$C$4:$P$8763,5) -> 83 | AA6: =VLOOKUP($S6,'area-2021'!$C$4:$P$8763,6) -> 0 | AB6: =VLOOKUP($S6,'area-2021'!$C$4:$P$8763,7) -> 27 | AC6: =VLOOKUP($S6,'area-2021'!$C$4:$P$8763,8) -> 0 | AD6: =VLOOKUP($S6,'area-2021'!$C$4:$P$8763,9) -> 0 | AE6: =VLOOKUP($S6,'area-2021'!$C$4:$P$8763,10) -> 11 | AF6: =VLOOKUP($S6,'area-2021'!$C$4:$P$8763,11) -> 0 | AG6: =VLOOKUP($S6,'area-2021'!$C$4:$P$8763,12) -> 0 | AH6: =VLOOKUP($S6,'area-2021'!$C$4:$P$8763,13) -> 246 | AI6: =VLOOKUP($S6,'area-2021'!$C$4:$P$8763,14) -> 20.78
S7: 445840.0833333333333333 | U7: 2022-01-23 | V7: 02:00:00 | W7: =VLOOKUP($S7,'area-2021'!$C$4:$P$8763,2) -> 3030 | X7: =VLOOKUP($S7,'area-2021'!$C$4:$P$8763,3) -> 0 | Y7: =VLOOKUP($S7,'area-2021'!$C$4:$P$8763,4) -> 2705 | Z7: =VLOOKUP($S7,'area-2021'!$C$4:$P$8763,5) -> 82 | AA7: =VLOOKUP($S7,'area-2021'!$C$4:$P$8763,6) -> 0 | AB7: =VLOOKUP($S7,'area-2021'!$C$4:$P$8763,7) -> 27 | AC7: =VLOOKUP($S7,'area-2021'!$C$4:$P$8763,8) -> 0 | AD7: =VLOOKUP($S7,'area-2021'!$C$4:$P$8763,9) -> 0 | AE7: =VLOOKUP($S7,'area-2021'!$C$4:$P$8763,10) -> 10 | AF7: =VLOOKUP($S7,'area-2021'!$C$4:$P$8763,11) -> 0 | AG7: =VLOOKUP($S7,'area-2021'!$C$4:$P$8763,12) -> 0 | AH7: =VLOOKUP($S7,'area-2021'!$C$4:$P$8763,13) -> 206 | AI7: =VLOOKUP($S7,'area-2021'!$C$4:$P$8763,14) -> 20.15
S8: 445840.125 | U8: 2022-01-23 | V8: 03:00:00 | W8: =VLOOKUP($S8,'area-2021'!$C$4:$P$8763,2) -> 2980 | X8: =VLOOKUP($S8,'area-2021'!$C$4:$P$8763,3) -> 0 | Y8: =VLOOKUP($S8,'area-2021'!$C$4:$P$8763,4) -> 2667 | Z8: =VLOOKUP($S8,'area-2021'!$C$4:$P$8763,5) -> 80 | AA8: =VLOOKUP($S8,'area-2021'!$C$4:$P$8763,6) -> 0 | AB8: =VLOOKUP($S8,'area-2021'!$C$4:$P$8763,7) -> 27 | AC8: =VLOOKUP($S8,'area-2021'!$C$4:$P$8763,8) -> 0 | AD8: =VLOOKUP($S8,'area-2021'!$C$4:$P$8763,9) -> 0 | AE8: =VLOOKUP($S8,'area-2021'!$C$4:$P$8763,10) -> 10 | AF8: =VLOOKUP($S8,'area-2021'!$C$4:$P$8763,11) -> 0 | AG8: =VLOOKUP($S8,'area-2021'!$C$4:$P$8763,12) -> 0 | AH8: =VLOOKUP($S8,'area-2021'!$C$4:$P$8763,13) -> 196 | AI8: =VLOOKUP($S8,'area-2021'!$C$4:$P$8763,14) -> 20.24
S9: 445840.166666666666667 | U9: 2022-01-23 | V9: 04:00:00 | W9: =VLOOKUP($S9,'area-2021'!$C$4:$P$8763,2) -> 2963 | X9: =VLOOKUP($S9,'area-2021'!$C$4:$P$8763,3) -> 0 | Y9: =VLOOKUP($S9,'area-2021'!$C$4:$P$8763,4) -> 2645 | Z9: =VLOOKUP($S9,'area-2021'!$C$4:$P$8763,5) -> 87 | AA9: =VLOOKUP($S9,'area-2021'!$C$4:$P$8763,6) -> 0 | AB9: =VLOOKUP($S9,'area-2021'!$C$4:$P$8763,7) -> 27 | AC9: =VLOOKUP($S9,'area-2021'!$C$4:$P$8763,8) -> 0 | AD9: =VLOOKUP($S9,'area-2021'!$C$4:$P$8763,9) -> 0 | AE9: =VLOOKUP($S9,'area-2021'!$C$4:$P$8763,10) -> 10 | AF9: =VLOOKUP($S9,'area-2021'!$C$4:$P$8763,11) -> 0 | AG9: =VLOOKUP($S9,'area-2021'!$C$4:$P$8763,12) -> 0 | AH9: =VLOOKUP($S9,'area-2021'!$C$4:$P$8763,13) -> 194 | AI9: =VLOOKUP($S9,'area-2021'!$C$4:$P$8763,14) -> 20.18
S10: 445840.208333333333333 | U10: 2022-01-23 | V10: 05:00:00 | W10: =VLOOKUP($S10,'area-2021'!$C$4:$P$8763,2) -> 3042 | X10: =VLOOKUP($S10,'area-2021'!$C$4:$P$8763,3) -> 0 | Y10: =VLOOKUP($S10,'area-2021'!$C$4:$P$8763,4) -> 2696 | Z10: =VLOOKUP($S10,'area-2021'!$C$4:$P$8763,5) -> 89 | AA10: =VLOOKUP($S10,'area-2021'!$C$4:$P$8763,6) -> 0 | AB10: =VLOOKUP($S10,'area-2021'!$C$4:$P$8763,7) -> 27 | AC10: =VLOOKUP($S10,'area-2021'!$C$4:$P$8763,8) -> 0 | AD10: =VLOOKUP($S10,'area-2021'!$C$4:$P$8763,9) -> 0 | AE10: =VLOOKUP($S10,'area-2021'!$C$4:$P$8763,10) -> 9 | AF10: =VLOOKUP($S10,'area-2021'!$C$4:$P$8763,11) -> 0 | AG10: =VLOOKUP($S10,'area-2021'!$C$4:$P$8763,12) -> 0 | AH10: =VLOOKUP($S10,'area-2021'!$C$4:$P$8763,13) -> 221 | AI10: =VLOOKUP($S10,'area-2021'!$C$4:$P$8763,14) -> 19.465
S11: 445840.25 | U11: 2022-01-23 | V11: 06:00:00 | W11: =VLOOKUP($S11,'area-2021'!$C$4:$P$8763,2) -> 3259 | X11: =VLOOKUP($S11,'area-2021'!$C$4:$P$8763,3) -> 0 | Y11: =VLOOKUP($S11,'area-2021'!$C$4:$P$8763,4) -> 2880 | Z11: =VLOOKUP($S11,'area-2021'!$C$4:$P$8763,5) -> 87 | AA11: =VLOOKUP($S11,'area-2021'!$C$4:$P$8763,6) -> 0 | AB11: =VLOOKUP($S11,'area-2021'!$C$4:$P$8763,7) -> 27 | AC11: =VLOOKUP($S11,'area-2021'!$C$4:$P$8763,8) -> 0 | AD11: =VLOOKUP($S11,'area-2021'!$C$4:$P$8763,9) -> 0 | AE11: =VLOOKUP($S11,'area-2021'!$C$4:$P$8763,10) -> 8 | AF11: =VLOOKUP($S11,'area-2021'!$C$4:$P$8763,11) -> 0 | AG11: =VLOOKUP($S11,'area-2021'!$C$4:$P$8763,12) -> 0 | AH11: =VLOOKUP($S11,'area-2021'!$C$4:$P$8763,13) -> 257 | AI11: =VLOOKUP($S11,'area-2021'!$C$4:$P$8763,14) -> 18.285
S12: 445840.291666666666667 | U12: 2022-01-23 | V12: 07:00:00 | W12: =VLOOKUP($S12,'area-2021'!$C$4:$P$8763,2) -> 3547 | X12: =VLOOKUP($S12,'area-2021'!$C$4:$P$8763,3) -> 0 | Y12: =VLOOKUP($S12,'area-2021'!$C$4:$P$8763,4) -> 3056 | Z12: =VLOOKUP($S12,'area-2021'!$C$4:$P$8763,5) -> 93 | AA12: =VLOOKUP($S12,'area-2021'!$C$4:$P$8763,6) -> 0 | AB12: =VLOOKUP($S12,'area-2021'!$C$4:$P$8763,7) -> 27 | AC12: =VLOOKUP($S12,'area-2021'!$C$4:$P$8763,8) -> 55 | AD12: =VLOOKUP($S12,'area-2021'!$C$4:$P$8763,9) -> 0 | AE12: =VLOOKUP($S12,'area-2021'!$C$4:$P$8763,10) -> 7 | AF12: =VLOOKUP($S12,'area-2021'!$C$4:$P$8763,11) -> 0 | AG12: =VLOOKUP($S12,'area-2021'!$C$4:$P$8763,12) -> 27 | AH12: =VLOOKUP($S12,'area-2021'!$C$4:$P$8763,13) -> 282 | AI12: =VLOOKUP($S12,'area-2021'!$C$4:$P$8763,14) -> 17.89
S13: 445840.333333333333333 | U13: 2022-01-23 | V13: 08:00:00 | W13: =VLOOKUP($S13,'area-2021'!$C$4:$P$8763,2) -> 3860 | X13: =VLOOKUP($S13,'area-2021'!$C$4:$P$8763,3) -> 0 | Y13: =VLOOKUP($S13,'area-2021'!$C$4:$P$8763,4) -> 3098 | Z13: =VLOOKUP($S13,'area-2021'!$C$4:$P$8763,5) -> 95 | AA13: =VLOOKUP($S13,'area-2021'!$C$4:$P$8763,6) -> 0 | AB13: =VLOOKUP($S13,'area-2021'!$C$4:$P$8763,7) -> 27 | AC13: =VLOOKUP($S13,'area-2021'!$C$4:$P$8763,8) -> 252 | AD13: =VLOOKUP($S13,'area-2021'!$C$4:$P$8763,9) -> 0 | AE13: =VLOOKUP($S13,'area-2021'!$C$4:$P$8763,10) -> 5 | AF13: =VLOOKUP($S13,'area-2021'!$C$4:$P$8763,11) -> 0 | AG13: =VLOOKUP($S13,'area-2021'!$C$4:$P$8763,12) -> 31 | AH13: =VLOOKUP($S13,'area-2021'!$C$4:$P$8763,13) -> 352 | AI13: =VLOOKUP($S13,'area-2021'!$C$4:$P$8763,14) -> 20.15
S14: 445840.375 | U14: 2022-01-23 | V14: 09:00:00 | W14: =VLOOKUP($S14,'area-2021'!$C$4:$P$8763,2) -> 4019 | X14: =VLOOKUP($S14,'area-2021'!$C$4:$P$8763,3) -> 0 | Y14: =VLOOKUP($S14,'area-2021'!$C$4:$P$8763,4) -> 3062 | Z14: =VLOOKUP($S14,'area-2021'!$C$4:$P$8763,5) -> 88 | AA14: =VLOOKUP($S14,'area-2021'!$C$4:$P$8763,6) -> 0 | AB14: =VLOOKUP($S14,'area-2021'!$C$4:$P$8763,7) -> 27 | AC14: =VLOOKUP($S14,'area-2021'!$C$4:$P$8763,8) -> 433 | AD14: =VLOOKUP($S14,'area-2021'!$C$4:$P$8763,9) -> 0 | AE14: =VLOOKUP($S14,'area-2021'!$C$4:$P$8763,10) -> 3 | AF14: =VLOOKUP($S14,'area-2021'!$C$4:$P$8763,11) -> 0 | AG14: =VLOOKUP($S14,'area-2021'!$C$4:$P$8763,12) -> -16 | AH14: =VLOOKUP($S14,'area-2021'!$C$4:$P$8763,13) -> 422 | AI14: =VLOOKUP($S14,'area-2021'!$C$4:$P$8763,14) -> 19.83
S15: 445840.416666666666667 | U15: 2022-01-23 | V15: 10:00:00 | W15: =VLOOKUP($S15,'area-2021'!$C$4:$P$8763,2) -> 3927 | X15: =VLOOKUP($S15,'area-2021'!$C$4:$P$8763,3) -> 0 | Y15: =VLOOKUP($S15,'area-2021'!$C$4:$P$8763,4) -> 3084 | Z15: =VLOOKUP($S15,'area-2021'!$C$4:$P$8763,5) -> 89 | AA15: =VLOOKUP($S15,'area-2021'!$C$4:$P$8763,6) -> 0 | AB15: =VLOOKUP($S15,'area-2021'!$C$4:$P$8763,7) -> 27 | AC15: =VLOOKUP($S15,'area-2021'!$C$4:$P$8763,8) -> 546 | AD15: =VLOOKUP($S15,'area-2021'!$C$4:$P$8763,9) -> 0 | AE15: =VLOOKUP($S15,'area-2021'!$C$4:$P$8763,10) -> 3 | AF15: =VLOOKUP($S15,'area-2021'!$C$4:$P$8763,11) -> 0 | AG15: =VLOOKUP($S15,'area-2021'!$C$4:$P$8763,12) -> -247 | AH15: =VLOOKUP($S15,'area-2021'!$C$4:$P$8763,13) -> 425 | AI15: =VLOOKUP($S15,'area-2021'!$C$4:$P$8763,14) -> 16.47
S16: 445840.458333333333333 | U16: 2022-01-23 | V16: 11:00:00 | W16: =VLOOKUP($S16,'area-2021'!$C$4:$P$8763,2) -> 3864 | X16: =VLOOKUP($S16,'area-2021'!$C$4:$P$8763,3) -> 0 | Y16: =VLOOKUP($S16,'area-2021'!$C$4:$P$8763,4) -> 3121 | Z16: =VLOOKUP($S16,'area-2021'!$C$4:$P$8763,5) -> 88 | AA16: =VLOOKUP($S16,'area-2021'!$C$4:$P$8763,6) -> 0 | AB16: =VLOOKUP($S16,'area-2021'!$C$4:$P$8763,7) -> 27 | AC16: =VLOOKUP($S16,'area-2021'!$C$4:$P$8763,8) -> 631 | AD16: =VLOOKUP($S16,'area-2021'!$C$4:$P$8763,9) -> 0 | AE16: =VLOOKUP($S16,'area-2021'!$C$4:$P$8763,10) -> 2 | AF16: =VLOOKUP($S16,'area-2021'!$C$4:$P$8763,11) -> 0 | AG16: =VLOOKUP($S16,'area-2021'!$C$4:$P$8763,12) -> -402 | AH16: =VLOOKUP($S16,'area-2021'!$C$4:$P$8763,13) -> 397 | AI16: =VLOOKUP($S16,'area-2021'!$C$4:$P$8763,14) -> 12.87
S17: 445840.5 | U17: 2022-01-23 | V17: 12:00:00 | W17: =VLOOKUP($S17,'area-2021'!$C$4:$P$8763,2) -> 3823 | X17: =VLOOKUP($S17,'area-2021'!$C$4:$P$8763,3) -> 0 | Y17: =VLOOKUP($S17,'area-2021'!$C$4:$P$8763,4) -> 3146 | Z17: =VLOOKUP($S17,'area-2021'!$C$4:$P$8763,5) -> 84 | AA17: =VLOOKUP($S17,'area-2021'!$C$4:$P$8763,6) -> 0 | AB17: =VLOOKUP($S17,'area-2021'!$C$4:$P$8763,7) -> 27 | AC17: =VLOOKUP($S17,'area-2021'!$C$4:$P$8763,8) -> 590 | AD17: =VLOOKUP($S17,'area-2021'!$C$4:$P$8763,9) -> 0 | AE17: =VLOOKUP($S17,'area-2021'!$C$4:$P$8763,10) -> 2 | AF17: =VLOOKUP($S17,'area-2021'!$C$4:$P$8763,11) -> 0 | AG17: =VLOOKUP($S17,'area-2021'!$C$4:$P$8763,12) -> -456 | AH17: =VLOOKUP($S17,'area-2021'!$C$4:$P$8763,13) -> 430 | AI17: =VLOOKUP($S17,'area-2021'!$C$4:$P$8763,14) -> 12.69
S18: 445840.541666666666667 | U18: 2022-01-23 | V18: 13:00:00 | W18: =VLOOKUP($S18,'area-2021'!$C$4:$P$8763,2) -> 3750 | X18: =VLOOKUP($S18,'area-2021'!$C$4:$P$8763,3) -> 0 | Y18: =VLOOKUP($S18,'area-2021'!$C$4:$P$8763,4) -> 3167 | Z18: =VLOOKUP($S18,'area-2021'!$C$4:$P$8763,5) -> 87 | AA18: =VLOOKUP($S18,'area-2021'!$C$4:$P$8763,6) -> 0 | AB18: =VLOOKUP($S18,'area-2021'!$C$4:$P$8763,7) -> 27 | AC18: =VLOOKUP($S18,'area-2021'!$C$4:$P$8763,8) -> 453 | AD18: =VLOOKUP($S18,'area-2021'!$C$4:$P$8763,9) -> 0 | AE18: =VLOOKUP($S18,'area-2021'!$C$4:$P$8763,10) -> 2 | AF18: =VLOOKUP($S18,'area-2021'!$C$4:$P$8763,11) -> 0 | AG18: =VLOOKUP($S18,'area-2021'!$C$4:$P$8763,12) -> -403 | AH18: =VLOOKUP($S18,'area-2021'!$C$4:$P$8763,13) -> 417 | AI18: =VLOOKUP($S18,'area-2021'!$C$4:$P$8763,14) -> 15.59
S19: 445840.583333333333333 | U19: 2022-01-23 | V19: 14:00:00 | W19: =VLOOKUP($S19,'area-2021'!$C$4:$P$8763,2) -> 3687 | X19: =VLOOKUP($S19,'area-2021'!$C$4:$P$8763,3) -> 0 | Y19: =VLOOKUP($S19,'area-2021'!$C$4:$P$8763,4) -> 3183 | Z19: =VLOOKUP($S19,'area-2021'!$C$4:$P$8763,5) -> 100 | AA19: =VLOOKUP($S19,'area-2021'!$C$4:$P$8763,6) -> 0 | AB19: =VLOOKUP($S19,'area-2021'!$C$4:$P$8763,7) -> 27 | AC19: =VLOOKUP($S19,'area-2021'!$C$4:$P$8763,8) -> 293 | AD19: =VLOOKUP($S19,'area-2021'!$C$4:$P$8763,9) -> 0 | AE19: =VLOOKUP($S19,'area-2021'!$C$4:$P$8763,10) -> 1 | AF19: =VLOOKUP($S19,'area-2021'!$C$4:$P$8763,11) -> 0 | AG19: =VLOOKUP($S19,'area-2021'!$C$4:$P$8763,12) -> -322 | AH19: =VLOOKUP($S19,'area-2021'!$C$4:$P$8763,13) -> 405 | AI19: =VLOOKUP($S19,'area-2021'!$C$4:$P$8763,14) -> 17.625
S20: 445840.625 | U20: 2022-01-23 | V20: 15:00:00 | W20: =VLOOKUP($S20,'area-2021'!$C$4:$P$8763,2) -> 3708 | X20: =VLOOKUP($S20,'area-2021'!$C$4:$P$8763,3) -> 0 | Y20: =VLOOKUP($S20,'area-2021'!$C$4:$P$8763,4) -> 3187 | Z20: =VLOOKUP($S20,'area-2021'!$C$4:$P$8763,5) -> 103 | AA20: =VLOOKUP($S20,'area-2021'!$C$4:$P$8763,6) -> 0 | AB20: =VLOOKUP($S20,'area-2021'!$C$4:$P$8763,7) -> 27 | AC20: =VLOOKUP($S20,'area-2021'!$C$4:$P$8763,8) -> 111 | AD20: =VLOOKUP($S20,'area-2021'!$C$4:$P$8763,9) -> 0 | AE20: =VLOOKUP($S20,'area-2021'!$C$4:$P$8763,10) -> 2 | AF20: =VLOOKUP($S20,'area-2021'!$C$4:$P$8763,11) -> 0 | AG20: =VLOOKUP($S20,'area-2021'!$C$4:$P$8763,12) -> -118 | AH20: =VLOOKUP($S20,'area-2021'!$C$4:$P$8763,13) -> 396 | AI20: =VLOOKUP($S20,'area-2021'!$C$4:$P$8763,14) -> 18.555
S21: 445840.666666666666667 | U21: 2022-01-23 | V21: 16:00:00 | W21: =VLOOKUP($S21,'area-2021'!$C$4:$P$8763,2) -> 3892 | X21: =VLOOKUP($S21,'area-2021'!$C$4:$P$8763,3) -> 0 | Y21: =VLOOKUP($S21,'area-2021'!$C$4:$P$8763,4) -> 3290 | Z21: =VLOOKUP($S21,'area-2021'!$C$4:$P$8763,5) -> 130 | AA21: =VLOOKUP($S21,'area-2021'!$C$4:$P$8763,6) -> 0 | AB21: =VLOOKUP($S21,'area-2021'!$C$4:$P$8763,7) -> 27 | AC21: =VLOOKUP($S21,'area-2021'!$C$4:$P$8763,8) -> 10 | AD21: =VLOOKUP($S21,'area-2021'!$C$4:$P$8763,9) -> 0 | AE21: =VLOOKUP($S21,'area-2021'!$C$4:$P$8763,10) -> 2 | AF21: =VLOOKUP($S21,'area-2021'!$C$4:$P$8763,11) -> 0 | AG21: =VLOOKUP($S21,'area-2021'!$C$4:$P$8763,12) -> 55 | AH21: =VLOOKUP($S21,'area-2021'!$C$4:$P$8763,13) -> 378 | AI21: =VLOOKUP($S21,'area-2021'!$C$4:$P$8763,14) -> 21.88
S22: 445840.708333333333333 | U22: 2022-01-23 | V22: 17:00:00 | W22: =VLOOKUP($S22,'area-2021'!$C$4:$P$8763,2) -> 4167 | X22: =VLOOKUP($S22,'area-2021'!$C$4:$P$8763,3) -> 0 | Y22: =VLOOKUP($S22,'area-2021'!$C$4:$P$8763,4) -> 3408 | Z22: =VLOOKUP($S22,'area-2021'!$C$4:$P$8763,5) -> 138 | AA22: =VLOOKUP($S22,'area-2021'!$C$4:$P$8763,6) -> 0 | AB22: =VLOOKUP($S22,'area-2021'!$C$4:$P$8763,7) -> 27 | AC22: =VLOOKUP($S22,'area-2021'!$C$4:$P$8763,8) -> 0 | AD22: =VLOOKUP($S22,'area-2021'!$C$4:$P$8763,9) -> 0 | AE22: =VLOOKUP($S22,'area-2021'!$C$4:$P$8763,10) -> 3 | AF22: =VLOOKUP($S22,'area-2021'!$C$4:$P$8763,11) -> 0 | AG22: =VLOOKUP($S22,'area-2021'!$C$4:$P$8763,12) -> 254 | AH22: =VLOOKUP($S22,'area-2021'!$C$4:$P$8763,13) -> 337 | AI22: =VLOOKUP($S22,'area-2021'!$C$4:$P$8763,14) -> 25.66
S23: 445840.75 | U23: 2022-01-23 | V23: 18:00:00 | W23: =VLOOKUP($S23,'area-2021'!$C$4:$P$8763,2) -> 4219 | X23: =VLOOKUP($S23,'area-2021'!$C$4:$P$8763,3) -> 0 | Y23: =VLOOKUP($S23,'area-2021'!$C$4:$P$8763,4) -> 3411 | Z23: =VLOOKUP($S23,'area-2021'!$C$4:$P$8763,5) -> 139 | AA23: =VLOOKUP($S23,'area-2021'!$C$4:$P$8763,6) -> 0 | AB23: =VLOOKUP($S23,'area-2021'!$C$4:$P$8763,7) -> 27 | AC23: =VLOOKUP($S23,'area-2021'!$C$4:$P$8763,8) -> 0 | AD23: =VLOOKUP($S23,'area-2021'!$C$4:$P$8763,9) -> 0 | AE23: =VLOOKUP($S23,'area-2021'!$C$4:$P$8763,10) -> 3 | AF23: =VLOOKUP($S23,'area-2021'!$C$4:$P$8763,11) -> 0 | AG23: =VLOOKUP($S23,'area-2021'!$C$4:$P$8763,12) -> 333 | AH23: =VLOOKUP($S23,'area-2021'!$C$4:$P$8763,13) -> 306 | AI23: =VLOOKUP($S23,'area-2021'!$C$4:$P$8763,14) -> 27.18
S24: 445840.791666666666667 | U24: 2022-01-23 | V24: 19:00:00 | W24: =VLOOKUP($S24,'area-2021'!$C$4:$P$8763,2) -> 4148 | X24: =VLOOKUP($S24,'area-2021'!$C$4:$P$8763,3) -> 0 | Y24: =VLOOKUP($S24,'area-2021'!$C$4:$P$8763,4) -> 3410 | Z24: =VLOOKUP($S24,'area-2021'!$C$4:$P$8763,5) -> 123 | AA24: =VLOOKUP($S24,'area-2021'!$C$4:$P$8763,6) -> 0 | AB24: =VLOOKUP($S24,'area-2021'!$C$4:$P$8763,7) -> 27 | AC24: =VLOOKUP($S24,'area-2021'!$C$4:$P$8763,8) -> 0 | AD24: =VLOOKUP($S24,'area-2021'!$C$4:$P$8763,9) -> 0 | AE24: =VLOOKUP($S24,'area-2021'!$C$4:$P$8763,10) -> 4 | AF24: =VLOOKUP($S24,'area-2021'!$C$4:$P$8763,11) -> 0 | AG24: =VLOOKUP($S24,'area-2021'!$C$4:$P$8763,12) -> 281 | AH24: =VLOOKUP($S24,'area-2021'!$C$4:$P$8763,13) -> 303 | AI24: =VLOOKUP($S24,'area-2021'!$C$4:$P$8763,14) -> 21.36
S25: 445840.833333333333333 | U25: 2022-01-23 | V25: 20:00:00 | W25: =VLOOKUP($S25,'area-2021'!$C$4:$P$8763,2) -> 4029 | X25: =VLOOKUP($S25,'area-2021'!$C$4:$P$8763,3) -> 0 | Y25: =VLOOKUP($S25,'area-2021'!$C$4:$P$8763,4) -> 3387 | Z25: =VLOOKUP($S25,'area-2021'!$C$4:$P$8763,5) -> 107 | AA25: =VLOOKUP($S25,'area-2021'!$C$4:$P$8763,6) -> 0 | AB25: =VLOOKUP($S25,'area-2021'!$C$4:$P$8763,7) -> 27 | AC25: =VLOOKUP($S25,'area-2021'!$C$4:$P$8763,8) -> 0 | AD25: =VLOOKUP($S25,'area-2021'!$C$4:$P$8763,9) -> 0 | AE25: =VLOOKUP($S25,'area-2021'!$C$4:$P$8763,10) -> 4 | AF25: =VLOOKUP($S25,'area-2021'!$C$4:$P$8763,11) -> 0 | AG25: =VLOOKUP($S25,'area-2021'!$C$4:$P$8763,12) -> 177 | AH25: =VLOOKUP($S25,'area-2021'!$C$4:$P$8763,13) -> 327 | AI25: =VLOOKUP($S25,'area-2021'!$C$4:$P$8763,14) -> 19.985
S26: 445840.875 | U26: 2022-01-23 | V26: 21:00:00 | W26: =VLOOKUP($S26,'area-2021'!$C$4:$P$8763,2) -> 3807 | X26: =VLOOKUP($S26,'area-2021'!$C$4:$P$8763,3) -> 0 | Y26: =VLOOKUP($S26,'area-2021'!$C$4:$P$8763,4) -> 3268 | Z26: =VLOOKUP($S26,'area-2021'!$C$4:$P$8763,5) -> 98 | AA26: =VLOOKUP($S26,'area-2021'!$C$4:$P$8763,6) -> 0 | AB26: =VLOOKUP($S26,'area-2021'!$C$4:$P$8763,7) -> 27 | AC26: =VLOOKUP($S26,'area-2021'!$C$4:$P$8763,8) -> 0 | AD26: =VLOOKUP($S26,'area-2021'!$C$4:$P$8763,9) -> 0 | AE26: =VLOOKUP($S26,'area-2021'!$C$4:$P$8763,10) -> 5 | AF26: =VLOOKUP($S26,'area-2021'!$C$4:$P$8763,11) -> 0 | AG26: =VLOOKUP($S26,'area-2021'!$C$4:$P$8763,12) -> 42 | AH26: =VLOOKUP($S26,'area-2021'!$C$4:$P$8763,13) -> 367 | AI26: =VLOOKUP($S26,'area-2021'!$C$4:$P$8763,14) -> 21.345
S27: 445840.916666666666667 | U27: 2022-01-23 | V27: 22:00:00 | W27: =VLOOKUP($S27,'area-2021'!$C$4:$P$8763,2) -> 3522 | X27: =VLOOKUP($S27,'area-2021'!$C$4:$P$8763,3) -> 0 | Y27: =VLOOKUP($S27,'area-2021'!$C$4:$P$8763,4) -> 2987 | Z27: =VLOOKUP($S27,'area-2021'!$C$4:$P$8763,5) -> 91 | AA27: =VLOOKUP($S27,'area-2021'!$C$4:$P$8763,6) -> 0 | AB27: =VLOOKUP($S27,'area-2021'!$C$4:$P$8763,7) -> 27 | AC27: =VLOOKUP($S27,'area-2021'!$C$4:$P$8763,8) -> 0 | AD27: =VLOOKUP($S27,'area-2021'!$C$4:$P$8763,9) -> 0 | AE27: =VLOOKUP($S27,'area-2021'!$C$4:$P$8763,10) -> 7 | AF27: =VLOOKUP($S27,'area-2021'!$C$4:$P$8763,11) -> 0 | AG27: =VLOOKUP($S27,'area-2021'!$C$4:$P$8763,12) -> 0 | AH27: =VLOOKUP($S27,'area-2021'!$C$4:$P$8763,13) -> 410 | AI27: =VLOOKUP($S27,'area-2021'!$C$4:$P$8763,14) -> 18.545
S28: 445840.958333333333333 | U28: 2022-01-23 | V28: 23:00:00 | W28: =VLOOKUP($S28,'area-2021'!$C$4:$P$8763,2) -> 3287 | X28: =VLOOKUP($S28,'area-2021'!$C$4:$P$8763,3) -> 0 | Y28: =VLOOKUP($S28,'area-2021'!$C$4:$P$8763,4) -> 2860 | Z28: =VLOOKUP($S28,'area-2021'!$C$4:$P$8763,5) -> 88 | AA28: =VLOOKUP($S28,'area-2021'!$C$4:$P$8763,6) -> 0 | AB28: =VLOOKUP($S28,'area-2021'!$C$4:$P$8763,7) -> 27 | AC28: =VLOOKUP($S28,'area-2021'!$C$4:$P$8763,8) -> 0 | AD28: =VLOOKUP($S28,'area-2021'!$C$4:$P$8763,9) -> 0 | AE28: =VLOOKUP($S28,'area-2021'!$C$4:$P$8763,10) -> 7 | AF28: =VLOOKUP($S28,'area-2021'!$C$4:$P$8763,11) -> 0 | AG28: =VLOOKUP($S28,'area-2021'!$C$4:$P$8763,12) -> -61 | AH28: =VLOOKUP($S28,'area-2021'!$C$4:$P$8763,13) -> 366 | AI28: =VLOOKUP($S28,'area-2021'!$C$4:$P$8763,14) -> 18.465

Sheet →DATA

Sheet area-2021
A1: 単位[万kWh]
A2: DATE | B2: TIME | D2: 東京エリア需要 | E2: 供給力
E3: 原子力 | F3: 火力 | G3: 水力 | H3: 地熱 | I3: バイオマス | J3: 太陽光発電実績 | K3: 太陽光出力制御量 | L3: 風力発電実績 | M3: 風力出力制御量 | N3: 揚水 | O3: 連系線 | P3: 東京エリアプライス
A4: 2021-04-01 | B4: 00:00:00 | C4: =A4&B4 -> 442870 | D4: 2350 | E4: 0 | F4: 1854 | G4: 187 | H4: 0 | I4: 30 | J4: 0 | K4: 0 | L4: 11 | M4: 0 | N4: 0 | O4: 268 | P4: 5.44
A5: 2021-04-01 | B5: 01:00:00 | C5: =A5&B5 -> 442870.0416666666666667 | D5: 2253 | E5: 0 | F5: 1741 | G5: 183 | H5: 0 | I5: 30 | J5: 0 | K5: 0 | L5: 10 | M5: 0 | N5: -16 | O5: 305 | P5: 5.56
A6: 2021-04-01 | B6: 02:00:00 | C6: 442870.0833333333333333 | D6: 2262 | E6: 0 | F6: 1829 | G6: 181 | H6: 0 | I6: 30 | J6: 0 | K6: 0 | L6: 9 | M6: 0 | N6: -19 | O6: 232 | P6: 5.575
A7: 2021-04-01 | B7: 03:00:00 | C7: 442870.125 | D7: 2290 | E7: 0 | F7: 1878 | G7: 178 | H7: 0 | I7: 30 | J7: 0 | K7: 0 | L7: 9 | M7: 0 | N7: 0 | O7: 195 | P7: 5.75
A8: 2021-04-01 | B8: 04:00:00 | C8: 442870.166666666666667 | D8: 2315 | E8: 0 | F8: 1916 | G8: 178 | H8: 0 | I8: 30 | J8: 0 | K8: 0 | L8: 8 | M8: 0 | N8: 0 | O8: 183 | P8: 5.88
A9: 2021-04-01 | B9: 05:00:00 | C9: 442870.208333333333333 | D9: 2368 | E9: 0 | F9: 1964 | G9: 178 | H9: 0 | I9: 30 | J9: 1 | K9: 0 | L9: 8 | M9: 0 | N9: 11 | O9: 176 | P9: 5.78
A10: 2021-04-01 | B10: 06:00:00 | C10: 442870.25 | D10: 2466 | E10: 0 | F10: 1970 | G10: 181 | H10: 0 | I10: 30 | J10: 75 | K10: 0 | L10: 7 | M10: 0 | N10: 35 | O10: 168 | P10: 5.405
A11: 2021-04-01 | B11: 07:00:00 | C11: 442870.291666666666667 | D11: 2636 | E11: 0 | F11: 1901 | G11: 190 | H11: 0 | I11: 29 | J11: 279 | K11: 0 | L11: 5 | M11: 0 | N11: 21 | O11: 211 | P11: 5.45
A12: 2021-04-01 | B12: 08:00:00 | C12: 442870.333333333333333 | D12: 2922 | E12: 0 | F12: 1835 | G12: 188 | H12: 0 | I12: 29 | J12: 571 | K12: 0 | L12: 5 | M12: 0 | N12: -5 | O12: 299 | P12: 5.4
A13: 2021-04-01 | B13: 09:00:00 | C13: 442870.375 | D13: 3107 | E13: 0 | F13: 1750 | G13: 180 | H13: 0 | I13: 29 | J13: 847 | K13: 0 | L13: 5 | M13: 0 | N13: -140 | O13: 436 | P13: 5.175
A14: 2021-04-01 | B14: 10:00:00 | C14: 442870.416666666666667 | D14: 3215 | E14: 0 | F14: 1719 | G14: 151 | H14: 0 | I14: 29 | J14: 1118 | K14: 0 | L14: 4 | M14: 0 | N14: -282 | O14: 476 | P14: 5.41
A15: 2021-04-01 | B15: 11:00:00 | C15: 442870.458333333333333 | D15: 3283 | E15: 0 | F15: 1746 | G15: 148 | H15: 0 | I15: 29 | J15: 1218 | K15: 0 | L15: 5 | M15: 0 | N15: -366 | O15: 503 | P15: 5.225
A16: 2021-04-01 | B16: 12:00:00 | C16: 442870.5 | D16: 3180 | E16: 0 | F16: 1723 | G16: 145 | H16: 0 | I16: 29 | J16: 1194 | K16: 0 | L16: 5 | M16: 0 | N16: -455 | O16: 539 | P16: 5.07
A17: 2021-04-01 | B17: 13:00:00 | C17: 442870.541666666666667 | D17: 3260 | E17: 0 | F17: 1809 | G17: 139 | H17: 0 | I17: 29 | J17: 1120 | K17: 0 | L17: 5 | M17: 0 | N17: -367 | O17: 525 | P17: 5.155
A18: 2021-04-01 | B18: 14:00:00 | C18: 442870.583333333333333 | D18: 3246 | E18: 0 | F18: 1864 | G18: 143 | H18: 0 | I18: 29 | J18: 928 | K18: 0 | L18: 5 | M18: 0 | N18: -207 | O18: 484 | P18: 5.385
A19: 2021-04-01 | B19: 15:00:00 | C19: 442870.625 | D19: 3217 | E19: 0 | F19: 1948 | G19: 187 | H19: 0 | I19: 29 | J19: 648 | K19: 0 | L19: 4 | M19: 0 | N19: -74 | O19: 475 | P19: 7.365
A20: 2021-04-01 | B20: 16:00:00 | C20: 442870.666666666666667 | D20: 3205 | E20: 0 | F20: 2134 | G20: 197 | H20: 0 | I20: 29 | J20: 307 | K20: 0 | L20: 3 | M20: 0 | N20: 163 | O20: 372 | P20: 6.925
A21: 2021-04-01 | B21: 17:00:00 | C21: 442870.708333333333333 | D21: 3156 | E21: 0 | F21: 2178 | G21: 201 | H21: 0 | I21: 30 | J21: 54 | K21: 0 | L21: 3 | M21: 0 | N21: 393 | O21: 297 | P21: 7
A22: 2021-04-01 | B22: 18:00:00 | C22: 442870.75 | D22: 3235 | E22: 0 | F22: 2187 | G22: 201 | H22: 0 | I22: 30 | J22: 0 | K22: 0 | L22: 3 | M22: 0 | N22: 544 | O22: 270 | P22: 7.215
A23: 2021-04-01 | B23: 19:00:00 | C23: 442870.791666666666667 | D23: 3152 | E23: 0 | F23: 2144 | G23: 204 | H23: 0 | I23: 30 | J23: 0 | K23: 0 | L23: 3 | M23: 0 | N23: 497 | O23: 274 | P23: 7.37
A24: 2021-04-01 | B24: 20:00:00 | C24: 442870.833333333333333 | D24: 3017 | E24: 0 | F24: 2193 | G24: 207 | H24: 0 | I24: 30 | J24: 0 | K24: 0 | L24: 3 | M24: 0 | N24: 290 | O24: 294 | P24: 6.925
A25: 2021-04-01 | B25: 21:00:00 | C25: 442870.875 | D25: 2851 | E25: 0 | F25: 2123 | G25: 202 | H25: 0 | I25: 30 | J25: 0 | K25: 0 | L25: 4 | M25: 0 | N25: 184 | O25: 308 | P25: 5.725
A26: 2021-04-01 | B26: 22:00:00 | C26: 442870.916666666666667 | D26: 2725 | E26: 0 | F26: 2085 | G26: 189 | H26: 0 | I26: 30 | J26: 0 | K26: 0 | L26: 4 | M26: 0 | N26: 142 | O26: 275 | P26: 5.52
A27: 2021-04-01 | B27: 23:00:00 | C27: 442870.958333333333333 | D27: 2581 | E27: 0 | F27: 2014 | G27: 178 | H27: 0 | I27: 30 | J27: 0 | K27: 0 | L27: 5 | M27: 0 | N27: 93 | O27: 261 | P27: 5.645
A28: 2021-04-02 | B28: 00:00:00 | C28: 442880 | D28: 2397 | E28: 0 | F28: 1909 | G28: 156 | H28: 0 | I28: 30 | J28: 0 | K28: 0 | L28: 5 | M28: 0 | N28: 0 | O28: 297 | P28: 5.43
A29: 2021-04-02 | B29: 01:00:00 | C29: 442880.0416666666666667 | D29: 2302 | E29: 0 | F29: 1821 | G29: 157 | H29: 0 | I29: 30 | J29: 0 | K29: 0 | L29: 6 | M29: 0 | N29: 0 | O29: 288 | P29: 5.51
A30: 2021-04-02 | B30: 02:00:00 | C30: 442880.0833333333333333 | D30: 2310 | E30: 0 | F30: 1895 | G30: 156 | H30: 0 | I30: 30 | J30: 0 | K30: 0 | L30: 7 | M30: 0 | N30: 0 | O30: 222 | P30: 6.28
A31: 2021-04-02 | B31: 03:00:00 | C31: 442880.125 | D31: 2337 | E31: 0 | F31: 1926 | G31: 159 | H31: 0 | I31: 30 | J31: 0 | K31: 0 | L31: 7 | M31: 0 | N31: 0 | O31: 215 | P31: 5.73
A32: 2021-04-02 | B32: 04:00:00 | C32: 442880.166666666666667 | D32: 2371 | E32: 0 | F32: 1950 | G32: 160 | H32: 0 | I32: 30 | J32: 0 | K32: 0 | L32: 9 | M32: 0 | N32: 0 | O32: 222 | P32: 6.22
A33: 2021-04-02 | B33: 05:00:00 | C33: 442880.208333333333333 | D33: 2423 | E33: 0 | F33: 1962 | G33: 174 | H33: 0 | I33: 30 | J33: 2 | K33: 0 | L33: 11 | M33: 0 | N33: 0 | O33: 244 | P33: 5.615
A34: 2021-04-02 | B34: 06:00:00 | C34: 442880.25 | D34: 2520 | E34: 0 | F34: 1960 | G34: 175 | H34: 0 | I34: 30 | J34: 75 | K34: 0 | L34: 12 | M34: 0 | N34: 0 | O34: 268 | P34: 5.44
A35: 2021-04-02 | B35: 07:00:00 | C35: 442880.291666666666667 | D35: 2693 | E35: 0 | F35: 1881 | G35: 182 | H35: 0 | I35: 30 | J35: 268 | K35: 0 | L35: 13 | M35: 0 | N35: -1 | O35: 320 | P35: 5.385
A36: 2021-04-02 | B36: 08:00:00 | C36: 442880.333333333333333 | D36: 2992 | E36: 0 | F36: 1912 | G36: 186 | H36: 0 | I36: 30 | J36: 514 | K36: 0 | L36: 12 | M36: 0 | N36: -92 | O36: 430 | P36: 5.04
A37: 2021-04-02 | B37: 09:00:00 | C37: 442880.375 | D37: 3202 | E37: 0 | F37: 1880 | G37: 171 | H37: 0 | I37: 29 | J37: 698 | K37: 0 | L37: 13 | M37: 0 | N37: -109 | O37: 520 | P37: 5.04
A38: 2021-04-02 | B38: 10:00:00 | C38: 442880.416666666666667 | D38: 3272 | E38: 0 | F38: 1872 | G38: 150 | H38: 0 | I38: 29 | J38: 799 | K38: 0 | L38: 12 | M38: 0 | N38: -111 | O38: 521 | P38: 4.455
A39: 2021-04-02 | B39: 11:00:00 | C39: 442880.458333333333333 | D39: 3252 | E39: 0 | F39: 1836 | G39: 152 | H39: 0 | I39: 29 | J39: 779 | K39: 0 | L39: 13 | M39: 0 | N39: -88 | O39: 531 | P39: 3.625
A40: 2021-04-02 | B40: 12:00:00 | C40: 442880.5 | D40: 3106 | E40: 0 | F40: 1823 | G40: 144 | H40: 0 | I40: 28 | J40: 788 | K40: 0 | L40: 12 | M40: 0 | N40: -224 | O40: 535 | P40: 4.72
A41: 2021-04-02 | B41: 13:00:00 | C41: 442880.541666666666667 | D41: 3220 | E41: 0 | F41: 1865 | G41: 142 | H41: 0 | I41: 29 | J41: 776 | K41: 0 | L41: 12 | M41: 0 | N41: -130 | O41: 526 | P41: 5.195
A42: 2021-04-02 | B42: 14:00:00 | C42: 442880.583333333333333 | D42: 3213 | E42: 0 | F42: 1906 | G42: 145 | H42: 0 | I42: 29 | J42: 630 | K42: 0 | L42: 12 | M42: 0 | N42: -18 | O42: 509 | P42: 5.955
A43: 2021-04-02 | B43: 15:00:00 | C43: 442880.625 | D43: 3213 | E43: 0 | F43: 2112 | G43: 186 | H43: 0 | I43: 29 | J43: 438 | K43: 0 | L43: 12 | M43: 0 | N43: 11 | O43: 425 | P43: 7.215
A44: 2021-04-02 | B44: 16:00:00 | C44: 442880.666666666666667 | D44: 3201 | E44: 0 | F44: 2323 | G44: 203 | H44: 0 | I44: 29 | J44: 192 | K44: 0 | L44: 12 | M44: 0 | N44: 69 | O44: 373 | P44: 7.29
A45: 2021-04-02 | B45: 17:00:00 | C45: 442880.708333333333333 | D45: 3181 | E45: 0 | F45: 2530 | G45: 198 | H45: 0 | I45: 29 | J45: 38 | K45: 0 | L45: 12 | M45: 0 | N45: 78 | O45: 296 | P45: 7.37
A46: 2021-04-02 | B46: 18:00:00 | C46: 442880.75 | D46: 3238 | E46: 0 | F46: 2593 | G46: 202 | H46: 0 | I46: 29 | J46: 0 | K46: 0 | L46: 12 | M46: 0 | N46: 102 | O46: 300 | P46: 6.87
A47: 2021-04-02 | B47: 19:00:00 | C47: 442880.791666666666667 | D47: 3144 | E47: 0 | F47: 2559 | G47: 204 | H47: 0 | I47: 29 | J47: 0 | K47: 0 | L47: 12 | M47: 0 | N47: 57 | O47: 283 | P47: 7.37
A48: 2021-04-02 | B48: 20:00:00 | C48: 442880.833333333333333 | D48: 3008 | E48: 0 | F48: 2456 | G48: 208 | H48: 0 | I48: 29 | J48: 0 | K48: 0 | L48: 12 | M48: 0 | N48: 2 | O48: 301 | P48: 7.215
A49: 2021-04-02 | B49: 21:00:00 | C49: 442880.875 | D49: 2852 | E49: 0 | F49: 2272 | G49: 192 | H49: 0 | I49: 29 | J49: 0 | K49: 0 | L49: 11 | M49: 0 | N49: 0 | O49: 348 | P49: 5.51
A50: 2021-04-02 | B50: 22:00:00 | C50: 442880.916666666666667 | D50: 2734 | E50: 0 | F50: 2159 | G50: 178 | H50: 0 | I50: 29 | J50: 0 | K50: 0 | L50: 12 | M50: 0 | N50: 0 | O50: 356 | P50: 6.07
A51: 2021-04-02 | B51: 23:00:00 | C51: 442880.958333333333333 | D51: 2600 | E51: 0 | F51: 2023 | G51: 171 | H51: 0 | I51: 29 | J51: 0 | K51: 0 | L51: 11 | M51: 0 | N51: 3 | O51: 363 | P51: 6.15
A52: 2021-04-03 | B52: 00:00:00 | C52: 442890 | D52: 2413 | E52: 0 | F52: 1930 | G52: 161 | H52: 0 | I52: 29 | J52: 0 | K52: 0 | L52: 11 | M52: 0 | N52: 20 | O52: 262 | P52: 5.655
A53: 2021-04-03 | B53: 01:00:00 | C53: 442890.0416666666666667 | D53: 2310 | E53: 0 | F53: 1856 | G53: 160 | H53: 0 | I53: 29 | J53: 0 | K53: 0 | L53: 10 | M53: 0 | N53: 0 | O53: 255 | P53: 6.02
A54: 2021-04-03 | B54: 02:00:00 | C54: 442890.0833333333333333 | D54: 2302 | E54: 0 | F54: 1848 | G54: 150 | H54: 0 | I54: 29 | J54: 0 | K54: 0 | L54: 9 | M54: 0 | N54: 11 | O54: 255 | P54: 7.045
A55: 2021-04-03 | B55: 03:00:00 | C55: 442890.125 | D55: 2322 | E55: 0 | F55: 1873 | G55: 144 | H55: 0 | I55: 29 | J55: 0 | K55: 0 | L55: 8 | M55: 0 | N55: 10 | O55: 258 | P55: 6.705
A56: 2021-04-03 | B56: 04:00:00 | C56: 442890.166666666666667 | D56: 2330 | E56: 0 | F56: 1895 | G56: 141 | H56: 0 | I56: 29 | J56: 0 | K56: 0 | L56: 7 | M56: 0 | N56: 11 | O56: 247 | P56: 7.36
A57: 2021-04-03 | B57: 05:00:00 | C57: 442890.208333333333333 | D57: 2313 | E57: 0 | F57: 1879 | G57: 146 | H57: 0 | I57: 29 | J57: 2 | K57: 0 | L57: 7 | M57: 0 | N57: 11 | O57: 239 | P57: 5.93
A58: 2021-04-03 | B58: 06:00:00 | C58: 442890.25 | D58: 2309 | E58: 0 | F58: 1856 | G58: 152 | H58: 0 | I58: 29 | J58: 77 | K58: 0 | L58: 6 | M58: 0 | N58: 6 | O58: 183 | P58: 5.325
A59: 2021-04-03 | B59: 07:00:00 | C59: 442890.291666666666667 | D59: 2366 | E59: 0 | F59: 1671 | G59: 160 | H59: 0 | I59: 29 | J59: 280 | K59: 0 | L59: 5 | M59: 0 | N59: -143 | O59: 364 | P59: 5.035
A60: 2021-04-03 | B60: 08:00:00 | C60: 442890.333333333333333 | D60: 2512 | E60: 0 | F60: 1649 | G60: 172 | H60: 0 | I60: 29 | J60: 596 | K60: 0 | L60: 5 | M60: 0 | N60: -258 | O60: 319 | P60: 4.485
A61: 2021-04-03 | B61: 09:00:00 | C61: 442890.375 | D61: 2715 | E61: 0 | F61: 1658 | G61: 170 | H61: 0 | I61: 29 | J61: 824 | K61: 0 | L61: 5 | M61: 0 | N61: -270 | O61: 299 | P61: 3.55
A62: 2021-04-03 | B62: 10:00:00 | C62: 442890.416666666666667 | D62: 2759 | E62: 0 | F62: 1646 | G62: 149 | H62: 0 | I62: 29 | J62: 879 | K62: 0 | L62: 4 | M62: 0 | N62: -314 | O62: 366 | P62: 2.315
A63: 2021-04-03 | B63: 11:00:00 | C63: 442890.458333333333333 | D63: 2728 | E63: 0 | F63: 1624 | G63: 142 | H63: 0 | I63: 28 | J63: 845 | K63: 0 | L63: 3 | M63: 0 | N63: -339 | O63: 425 | P63: 3.315
A64: 2021-04-03 | B64: 12:00:00 | C64: 442890.5 | D64: 2683 | E64: 0 | F64: 1631 | G64: 131 | H64: 0 | I64: 28 | J64: 835 | K64: 0 | L64: 3 | M64: 0 | N64: -322 | O64: 377 | P64: 2.315
A65: 2021-04-03 | B65: 13:00:00 | C65: 442890.541666666666667 | D65: 2689 | E65: 0 | F65: 1687 | G65: 127 | H65: 0 | I65: 28 | J65: 767 | K65: 0 | L65: 4 | M65: 0 | N65: -376 | O65: 452 | P65: 4.09
A66: 2021-04-03 | B66: 14:00:00 | C66: 442890.583333333333333 | D66: 2654 | E66: 0 | F66: 1764 | G66: 134 | H66: 0 | I66: 28 | J66: 614 | K66: 0 | L66: 5 | M66: 0 | N66: -292 | O66: 401 | P66: 4.86
A67: 2021-04-03 | B67: 15:00:00 | C67: 442890.625 | D67: 2650 | E67: 0 | F67: 1817 | G67: 160 | H67: 0 | I67: 29 | J67: 439 | K67: 0 | L67: 4 | M67: 0 | N67: -141 | O67: 342 | P67: 5.435
A68: 2021-04-03 | B68: 16:00:00 | C68: 442890.666666666666667 | D68: 2661 | E68: 0 | F68: 1965 | G68: 182 | H68: 0 | I68: 29 | J68: 217 | K68: 0 | L68: 5 | M68: 0 | N68: 51 | O68: 212 | P68: 7.22
A69: 2021-04-03 | B69: 17:00:00 | C69: =A69&B69 -> 442890.708333333333333 | D69: 2725 | E69: 0 | F69: 2112 | G69: 187 | H69: 0 | I69: 29 | J69: 41 | K69: 0 | L69: 5 | M69: 0 | N69: 252 | O69: 99 | P69: 7.655
A70: 2021-04-03 | B70: 18:00:00 | C70: 442890.75 | D70: 2870 | E70: 0 | F70: 2299 | G70: 187 | H70: 0 | I70: 29 | J70: 0 | K70: 0 | L70: 5 | M70: 0 | N70: 293 | O70: 57 | P70: 7.41
A71: 2021-04-03 | B71: 19:00:00 | C71: 442890.791666666666667 | D71: 2843 | E71: 0 | F71: 2305 | G71: 190 | H71: 0 | I71: 29 | J71: 0 | K71: 0 | L71: 7 | M71: 0 | N71: 228 | O71: 84 | P71: 7.38
A72: 2021-04-03 | B72: 20:00:00 | C72: 442890.833333333333333 | D72: 2743 | E72: 0 | F72: 2336 | G72: 181 | H72: 0 | I72: 29 | J72: 0 | K72: 0 | L72: 9 | M72: 0 | N72: 62 | O72: 126 | P72: 6.665
A73: 2021-04-03 | B73: 21:00:00 | C73: 442890.875 | D73: 2599 | E73: 0 | F73: 2076 | G73: 166 | H73: 0 | I73: 29 | J73: 0 | K73: 0 | L73: 9 | M73: 0 | N73: 169 | O73: 150 | P73: 5.67
A74: 2021-04-03 | B74: 22:00:00 | C74: 442890.916666666666667 | D74: 2493 | E74: 0 | F74: 1946 | G74: 157 | H74: 0 | I74: 29 | J74: 0 | K74: 0 | L74: 9 | M74: 0 | N74: 174 | O74: 178 | P74: 5.44
A75: 2021-04-03 | B75: 23:00:00 | C75: 442890.958333333333333 | D75: 2392 | E75: 0 | F75: 1886 | G75: 149 | H75: 0 | I75: 29 | J75: 0 | K75: 0 | L75: 10 | M75: 0 | N75: 75 | O75: 243 | P75: 5.375
A76: 2021-04-04 | B76: 00:00:00 | C76: 442900 | D76: 2236 | E76: 0 | F76: 1777 | G76: 159 | H76: 0 | I76: 25 | J76: 0 | K76: 0 | L76: 12 | M76: 0 | N76: 14 | O76: 249 | P76: 5.2
A77: 2021-04-04 | B77: 01:00:00 | C77: 442900.0416666666666667 | D77: 2152 | E77: 0 | F77: 1792 | G77: 148 | H77: 0 | I77: 25 | J77: 0 | K77: 0 | L77: 11 | M77: 0 | N77: -88 | O77: 264 | P77: 5.29
A78: 2021-04-04 | B78: 02:00:00 | C78: 442900.0833333333333333 | D78: 2161 | E78: 0 | F78: 1795 | G78: 144 | H78: 0 | I78: 25 | J78: 0 | K78: 0 | L78: 10 | M78: 0 | N78: -35 | O78: 222 | P78: 5.405
A79: 2021-04-04 | B79: 03:00:00 | C79: 442900.125 | D79: 2183 | E79: 0 | F79: 1859 | G79: 140 | H79: 0 | I79: 25 | J79: 0 | K79: 0 | L79: 10 | M79: 0 | N79: 0 | O79: 149 | P79: 5.59
A80: 2021-04-04 | B80: 04:00:00 | C80: 442900.166666666666667 | D80: 2197 | E80: 0 | F80: 1899 | G80: 134 | H80: 0 | I80: 25 | J80: 0 | K80: 0 | L80: 9 | M80: 0 | N80: 0 | O80: 130 | P80: 5.41
A81: 2021-04-04 | B81: 05:00:00 | C81: 442900.208333333333333 | D81: 2169 | E81: 0 | F81: 1822 | G81: 147 | H81: 0 | I81: 25 | J81: 1 | K81: 0 | L81: 9 | M81: 0 | N81: -3 | O81: 168 | P81: 5.155
A82: 2021-04-04 | B82: 06:00:00 | C82: 442900.25 | D82: 2126 | E82: 0 | F82: 1745 | G82: 147 | H82: 0 | I82: 25 | J82: 65 | K82: 0 | L82: 9 | M82: 0 | N82: -107 | O82: 242 | P82: 4.97
A83: 2021-04-04 | B83: 07:00:00 | C83: 442900.291666666666667 | D83: 2200 | E83: 0 | F83: 1742 | G83: 156 | H83: 0 | I83: 25 | J83: 248 | K83: 0 | L83: 9 | M83: 0 | N83: -202 | O83: 222 | P83: 4.9
A84: 2021-04-04 | B84: 08:00:00 | C84: 442900.333333333333333 | D84: 2365 | E84: 0 | F84: 1706 | G84: 171 | H84: 0 | I84: 25 | J84: 485 | K84: 0 | L84: 8 | M84: 0 | N84: -215 | O84: 185 | P84: 4.88
A85: 2021-04-04 | B85: 09:00:00 | C85: 442900.375 | D85: 2468 | E85: 0 | F85: 1732 | G85: 167 | H85: 0 | I85: 25 | J85: 616 | K85: 0 | L85: 8 | M85: 0 | N85: -217 | O85: 137 | P85: 5.055
A86: 2021-04-04 | B86: 10:00:00 | C86: 442900.416666666666667 | D86: 2542 | E86: 0 | F86: 1740 | G86: 161 | H86: 0 | I86: 25 | J86: 701 | K86: 0 | L86: 8 | M86: 0 | N86: -207 | O86: 114 | P86: 5.265
A87: 2021-04-04 | B87: 11:00:00 | C87: 442900.458333333333333 | D87: 2621 | E87: 0 | F87: 1811 | G87: 158 | H87: 0 | I87: 25 | J87: 714 | K87: 0 | L87: 9 | M87: 0 | N87: -278 | O87: 182 | P87: 5.6
A88: 2021-04-04 | B88: 12:00:00 | C88: 442900.5 | D88: 2596 | E88: 0 | F88: 1880 | G88: 147 | H88: 0 | I88: 25 | J88: 608 | K88: 0 | L88: 9 | M88: 0 | N88: -249 | O88: 176 | P88: 5.68
A89: 2021-04-04 | B89: 13:00:00 | C89: 442900.541666666666667 | D89: 2594 | E89: 0 | F89: 1877 | G89: 152 | H89: 0 | I89: 25 | J89: 481 | K89: 0 | L89: 8 | M89: 0 | N89: -144 | O89: 195 | P89: 6.65
A90: 2021-04-04 | B90: 14:00:00 | C90: 442900.583333333333333 | D90: 2566 | E90: 0 | F90: 1891 | G90: 158 | H90: 0 | I90: 25 | J90: 261 | K90: 0 | L90: 7 | M90: 0 | N90: -38 | O90: 262 | P90: 7.115
A91: 2021-04-04 | B91: 15:00:00 | C91: 442900.625 | D91: 2584 | E91: 0 | F91: 1996 | G91: 163 | H91: 0 | I91: 25 | J91: 138 | K91: 0 | L91: 7 | M91: 0 | N91: 3 | O91: 252 | P91: 7.44
A92: 2021-04-04 | B92: 16:00:00 | C92: 442900.666666666666667 | D92: 2639 | E92: 0 | F92: 2186 | G92: 185 | H92: 0 | I92: 25 | J92: 53 | K92: 0 | L92: 7 | M92: 0 | N92: 3 | O92: 180 | P92: 7.68
A93: 2021-04-04 | B93: 17:00:00 | C93: 442900.708333333333333 | D93: 2796 | E93: 0 | F93: 2364 | G93: 191 | H93: 0 | I93: 25 | J93: 9 | K93: 0 | L93: 8 | M93: 0 | N93: 57 | O93: 142 | P93: 7.43
A94: 2021-04-04 | B94: 18:00:00 | C94: 442900.75 | D94: 2907 | E94: 0 | F94: 2358 | G94: 195 | H94: 0 | I94: 25 | J94: 0 | K94: 0 | L94: 9 | M94: 0 | N94: 76 | O94: 244 | P94: 7.43
A95: 2021-04-04 | B95: 19:00:00 | C95: 442900.791666666666667 | D95: 2866 | E95: 0 | F95: 2357 | G95: 199 | H95: 0 | I95: 25 | J95: 0 | K95: 0 | L95: 10 | M95: 0 | N95: 41 | O95: 234 | P95: 6.865
A96: 2021-04-04 | B96: 20:00:00 | C96: 442900.833333333333333 | D96: 2780 | E96: 0 | F96: 2282 | G96: 190 | H96: 0 | I96: 25 | J96: 0 | K96: 0 | L96: 12 | M96: 0 | N96: 8 | O96: 263 | P96: 6.22
A97: 2021-04-04 | B97: 21:00:00 | C97: 442900.875 | D97: 2642 | E97: 0 | F97: 2173 | G97: 183 | H97: 0 | I97: 25 | J97: 0 | K97: 0 | L97: 14 | M97: 0 | N97: 3 | O97: 244 | P97: 5.495
A98: 2021-04-04 | B98: 22:00:00 | C98: 442900.916666666666667 | D98: 2499 | E98: 0 | F98: 2039 | G98: 169 | H98: 0 | I98: 25 | J98: 0 | K98: 0 | L98: 16 | M98: 0 | N98: 9 | O98: 241 | P98: 5.365
A99: 2021-04-04 | B99: 23:00:00 | C99: 442900.958333333333333 | D99: 2384 | E99: 0 | F99: 1849 | G99: 155 | H99: 0 | I99: 25 | J99: 0 | K99: 0 | L99: 16 | M99: 0 | N99: 3 | O99: 336 | P99: 5.26
A100: 2021-04-05 | B100: 00:00:00 | C100: 442910 | D100: 2223 | E100: 0 | F100: 1748 | G100: 160 | H100: 0 | I100: 25 | J100: 0 | K100: 0 | L100: 15 | M100: 0 | N100: -8 | O100: 283 | P100: 5.11
A101: 2021-04-05 | B101: 01:00:00 | C101: 442910.0416666666666667 | D101: 2141 | E101: 0 | F101: 1760 | G101: 160 | H101: 0 | I101: 25 | J101: 0 | K101: 0 | L101: 18 | M101: 0 | N101: -108 | O101: 286 | P101: 5.265
A102: 2021-04-05 | B102: 02:00:00 | C102: 442910.0833333333333333 | D102: 2164 | E102: 0 | F102: 1789 | G102: 160 | H102: 0 | I102: 25 | J102: 0 | K102: 0 | L102: 19 | M102: 0 | N102: -64 | O102: 235 | P102: 5.4
A103: 2021-04-05 | B103: 03:00:00 | C103: 442910.125 | D103: 2199 | E103: 0 | F103: 1804 | G103: 161 | H103: 0 | I103: 25 | J103: 0 | K103: 0 | L103: 20 | M103: 0 | N103: 3 | O103: 186 | P103: 5.46
A104: 2021-04-05 | B104: 04:00:00 | C104: 442910.166666666666667 | D104: 2227 | E104: 0 | F104: 1860 | G104: 163 | H104: 0 | I104: 25 | J104: 0 | K104: 0 | L104: 18 | M104: 0 | N104: 7 | O104: 154 | P104: 5.48
A105: 2021-04-05 | B105: 05:00:00 | C105: 442910.208333333333333 | D105: 2286 | E105: 0 | F105: 1957 | G105: 179 | H105: 0 | I105: 25 | J105: 2 | K105: 0 | L105: 16 | M105: 0 | N105: 9 | O105: 98 | P105: 5.56
A106: 2021-04-05 | B106: 06:00:00 | C106: 442910.25 | D106: 2456 | E106: 0 | F106: 2031 | G106: 177 | H106: 0 | I106: 25 | J106: 69 | K106: 0 | L106: 15 | M106: 0 | N106: 31 | O106: 108 | P106: 6.48
A107: 2021-04-05 | B107: 07:00:00 | C107: 442910.291666666666667 | D107: 2719 | E107: 0 | F107: 2204 | G107: 179 | H107: 0 | I107: 25 | J107: 165 | K107: 0 | L107: 13 | M107: 0 | N107: 53 | O107: 80 | P107: 7.135
A108: 2021-04-05 | B108: 08:00:00 | C108: 442910.333333333333333 | D108: 3044 | E108: 0 | F108: 2345 | G108: 180 | H108: 0 | I108: 24 | J108: 220 | K108: 0 | L108: 10 | M108: 0 | N108: 46 | O108: 219 | P108: 5.89
A109: 2021-04-05 | B109: 09:00:00 | C109: 442910.375 | D109: 3263 | E109: 0 | F109: 2535 | G109: 173 | H109: 0 | I109: 24 | J109: 222 | K109: 0 | L109: 10 | M109: 0 | N109: 36 | O109: 263 | P109: 6.06
A110: 2021-04-05 | B110: 10:00:00 | C110: 442910.416666666666667 | D110: 3282 | E110: 0 | F110: 2549 | G110: 168 | H110: 0 | I110: 24 | J110: 202 | K110: 0 | L110: 14 | M110: 0 | N110: 49 | O110: 276 | P110: 5.76
A111: 2021-04-05 | B111: 11:00:00 | C111: 442910.458333333333333 | D111: 3321 | E111: 0 | F111: 2483 | G111: 166 | H111: 0 | I111: 24 | J111: 232 | K111: 0 | L111: 20 | M111: 0 | N111: 4 | O111: 392 | P111: 5.49
A112: 2021-04-05 | B112: 12:00:00 | C112: 442910.5 | D112: 3268 | E112: 0 | F112: 2378 | G112: 164 | H112: 0 | I112: 24 | J112: 238 | K112: 0 | L112: 25 | M112: 0 | N112: 3 | O112: 436 | P112: 5.97
A113: 2021-04-05 | B113: 13:00:00 | C113: 442910.541666666666667 | D113: 3377 | E113: 0 | F113: 2483 | G113: 163 | H113: 0 | I113: 24 | J113: 210 | K113: 0 | L113: 29 | M113: 0 | N113: 3 | O113: 465 | P113: 5.85
A114: 2021-04-05 | B114: 14:00:00 | C114: 442910.583333333333333 | D114: 3370 | E114: 0 | F114: 2482 | G114: 165 | H114: 0 | I114: 24 | J114: 200 | K114: 0 | L114: 29 | M114: 0 | N114: 3 | O114: 467 | P114: 6.03
A115: 2021-04-05 | B115: 15:00:00 | C115: 442910.625 | D115: 3381 | E115: 0 | F115: 2418 | G115: 180 | H115: 0 | I115: 24 | J115: 214 | K115: 0 | L115: 27 | M115: 0 | N115: 70 | O115: 448 | P115: 7.55
A116: 2021-04-05 | B116: 16:00:00 | C116: 442910.666666666666667 | D116: 3404 | E116: 0 | F116: 2484 | G116: 194 | H116: 0 | I116: 25 | J116: 122 | K116: 0 | L116: 26 | M116: 0 | N116: 218 | O116: 335 | P116: 7.935
A117: 2021-04-05 | B117: 17:00:00 | C117: 442910.708333333333333 | D117: 3421 | E117: 0 | F117: 2505 | G117: 196 | H117: 0 | I117: 25 | J117: 32 | K117: 0 | L117: 26 | M117: 0 | N117: 335 | O117: 302 | P117: 8.16
A118: 2021-04-05 | B118: 18:00:00 | C118: 442910.75 | D118: 3475 | E118: 0 | F118: 2535 | G118: 198 | H118: 0 | I118: 25 | J118: 0 | K118: 0 | L118: 25 | M118: 0 | N118: 488 | O118: 204 | P118: 7.835
A119: 2021-04-05 | B119: 19:00:00 | C119: 442910.791666666666667 | D119: 3389 | E119: 0 | F119: 2461 | G119: 200 | H119: 0 | I119: 25 | J119: 0 | K119: 0 | L119: 25 | M119: 0 | N119: 371 | O119: 307 | P119: 7.415
A120: 2021-04-05 | B120: 20:00:00 | C120: 442910.833333333333333 | D120: 3247 | E120: 0 | F120: 2606 | G120: 197 | H120: 0 | I120: 25 | J120: 0 | K120: 0 | L120: 24 | M120: 0 | N120: 106 | O120: 289 | P120: 6.985
A121: 2021-04-05 | B121: 21:00:00 | C121: 442910.875 | D121: 3077 | E121: 0 | F121: 2450 | G121: 193 | H121: 0 | I121: 25 | J121: 0 | K121: 0 | L121: 23 | M121: 0 | N121: 84 | O121: 302 | P121: 7.06
A122: 2021-04-05 | B122: 22:00:00 | C122: 442910.916666666666667 | D122: 2931 | E122: 0 | F122: 2237 | G122: 183 | H122: 0 | I122: 25 | J122: 0 | K122: 0 | L122: 24 | M122: 0 | N122: 152 | O122: 310 | P122: 6.755
A123: 2021-04-05 | B123: 23:00:00 | C123: 442910.958333333333333 | D123: 2771 | E123: 0 | F123: 2255 | G123: 167 | H123: 0 | I123: 25 | J123: 0 | K123: 0 | L123: 23 | M123: 0 | N123: 19 | O123: 282 | P123: 6.065
A124: 2021-04-06 | B124: 00:00:00 | C124: 442920 | D124: 2570 | E124: 0 | F124: 2133 | G124: 160 | H124: 0 | I124: 24 | J124: 0 | K124: 0 | L124: 23 | M124: 0 | N124: 0 | O124: 230 | P124: 5.525
A125: 2021-04-06 | B125: 01:00:00 | C125: 442920.0416666666666667 | D125: 2472 | E125: 0 | F125: 2065 | G125: 163 | H125: 0 | I125: 24 | J125: 0 | K125: 0 | L125: 22 | M125: 0 | N125: 0 | O125: 198 | P125: 6.01
A126: 2021-04-06 | B126: 02:00:00 | C126: 442920.0833333333333333 | D126: 2466 | E126: 0 | F126: 2082 | G126: 168 | H126: 0 | I126: 25 | J126: 0 | K126: 0 | L126: 22 | M126: 0 | N126: 5 | O126: 164 | P126: 7.22
A127: 2021-04-06 | B127: 03:00:00 | C127: 442920.125 | D127: 2498 | E127: 0 | F127: 2118 | G127: 168 | H127: 0 | I127: 25 | J127: 0 | K127: 0 | L127: 22 | M127: 0 | N127: 10 | O127: 155 | P127: 7.4
A128: 2021-04-06 | B128: 04:00:00 | C128: 442920.166666666666667 | D128: 2551 | E128: 0 | F128: 2205 | G128: 168 | H128: 0 | I128: 25 | J128: 0 | K128: 0 | L128: 24 | M128: 0 | N128: 10 | O128: 119 | P128: 7.655
A129: 2021-04-06 | B129: 05:00:00 | C129: 442920.208333333333333 | D129: 2646 | E129: 0 | F129: 2272 | G129: 175 | H129: 0 | I129: 25 | J129: 3 | K129: 0 | L129: 24 | M129: 0 | N129: 26 | O129: 121 | P129: 6.425
A130: 2021-04-06 | B130: 06:00:00 | C130: 442920.25 | D130: 2817 | E130: 0 | F130: 2249 | G130: 171 | H130: 0 | I130: 24 | J130: 102 | K130: 0 | L130: 23 | M130: 0 | N130: 10 | O130: 238 | P130: 5.49
A131: 2021-04-06 | B131: 07:00:00 | C131: 442920.291666666666667 | D131: 3038 | E131: 0 | F131: 2153 | G131: 174 | H131: 0 | I131: 24 | J131: 286 | K131: 0 | L131: 22 | M131: 0 | N131: 8 | O131: 371 | P131: 5.56
A132: 2021-04-06 | B132: 08:00:00 | C132: 442920.333333333333333 | D132: 3334 | E132: 0 | F132: 2065 | G132: 180 | H132: 0 | I132: 24 | J132: 474 | K132: 0 | L132: 20 | M132: 0 | N132: 45 | O132: 526 | P132: 5.415
A133: 2021-04-06 | B133: 09:00:00 | C133: =A133&B133 -> 442920.375 | D133: 3464 | E133: 0 | F133: 2013 | G133: 183 | H133: 0 | I133: 24 | J133: 661 | K133: 0 | L133: 18 | M133: 0 | N133: 46 | O133: 519 | P133: 5.15
A134: 2021-04-06 | B134: 10:00:00 | C134: 442920.416666666666667 | D134: 3525 | E134: 0 | F134: 1914 | G134: 171 | H134: 0 | I134: 23 | J134: 885 | K134: 0 | L134: 17 | M134: 0 | N134: 24 | O134: 491 | P134: 4.94
A135: 2021-04-06 | B135: 11:00:00 | C135: 442920.458333333333333 | D135: 3509 | E135: 0 | F135: 1865 | G135: 161 | H135: 0 | I135: 23 | J135: 889 | K135: 0 | L135: 17 | M135: 0 | N135: 30 | O135: 524 | P135: 4.63
A136: 2021-04-06 | B136: 12:00:00 | C136: 442920.5 | D136: 3328 | E136: 0 | F136: 1755 | G136: 158 | H136: 0 | I136: 23 | J136: 876 | K136: 0 | L136: 16 | M136: 0 | N136: -41 | O136: 541 | P136: 5.065
A137: 2021-04-06 | B137: 13:00:00 | C137: 442920.541666666666667 | D137: 3393 | E137: 0 | F137: 1872 | G137: 157 | H137: 0 | I137: 23 | J137: 859 | K137: 0 | L137: 15 | M137: 0 | N137: -46 | O137: 513 | P137: 5.425
A138: 2021-04-06 | B138: 14:00:00 | C138: 442920.583333333333333 | D138: 3351 | E138: 0 | F138: 2044 | G138: 164 | H138: 0 | I138: 23 | J138: 747 | K138: 0 | L138: 14 | M138: 0 | N138: 5 | O138: 354 | P138: 5.47
A139: 2021-04-06 | B139: 15:00:00 | C139: 442920.625 | D139: 3361 | E139: 0 | F139: 2225 | G139: 176 | H139: 0 | I139: 23 | J139: 531 | K139: 0 | L139: 14 | M139: 0 | N139: 85 | O139: 307 | P139: 6.595
A140: 2021-04-06 | B140: 16:00:00 | C140: 442920.666666666666667 | D140: 3365 | E140: 0 | F140: 2504 | G140: 189 | H140: 0 | I140: 23 | J140: 249 | K140: 0 | L140: 14 | M140: 0 | N140: 170 | O140: 216 | P140: 7.75
A141: 2021-04-06 | B141: 17:00:00 | C141: 442920.708333333333333 | D141: 3378 | E141: 0 | F141: 2686 | G141: 196 | H141: 0 | I141: 24 | J141: 45 | K141: 0 | L141: 13 | M141: 0 | N141: 138 | O141: 276 | P141: 8.82
A142: 2021-04-06 | B142: 18:00:00 | C142: 442920.75 | D142: 3512 | E142: 0 | F142: 2782 | G142: 195 | H142: 0 | I142: 24 | J142: 0 | K142: 0 | L142: 12 | M142: 0 | N142: 226 | O142: 273 | P142: 8.21
A143: 2021-04-06 | B143: 19:00:00 | C143: 442920.791666666666667 | D143: 3450 | E143: 0 | F143: 2773 | G143: 199 | H143: 0 | I143: 25 | J143: 0 | K143: 0 | L143: 12 | M143: 0 | N143: 166 | O143: 275 | P143: 8.205
A144: 2021-04-06 | B144: 20:00:00 | C144: 442920.833333333333333 | D144: 3325 | E144: 0 | F144: 2726 | G144: 177 | H144: 0 | I144: 26 | J144: 0 | K144: 0 | L144: 11 | M144: 0 | N144: 80 | O144: 305 | P144: 7.595
A145: 2021-04-06 | B145: 21:00:00 | C145: 442920.875 | D145: 3146 | E145: 0 | F145: 2568 | G145: 161 | H145: 0 | I145: 26 | J145: 0 | K145: 0 | L145: 9 | M145: 0 | N145: 34 | O145: 348 | P145: 7.485
A146: 2021-04-06 | B146: 22:00:00 | C146: 442920.916666666666667 | D146: 2981 | E146: 0 | F146: 2446 | G146: 151 | H146: 0 | I146: 27 | J146: 0 | K146: 0 | L146: 8 | M146: 0 | N146: 25 | O146: 324 | P146: 7.35
A147: 2021-04-06 | B147: 23:00:00 | C147: 442920.958333333333333 | D147: 2783 | E147: 0 | F147: 2266 | G147: 145 | H147: 0 | I147: 27 | J147: 0 | K147: 0 | L147: 7 | M147: 0 | N147: 17 | O147: 321 | P147: 6.715
A148: 2021-04-07 | B148: 00:00:00 | C148: 442930 | D148: 2548 | E148: 0 | F148: 2066 | G148: 151 | H148: 0 | I148: 28 | J148: 0 | K148: 0 | L148: 5 | M148: 0 | N148: 0 | O148: 298 | P148: 5.88
A149: 2021-04-07 | B149: 01:00:00 | C149: 442930.0416666666666667 | D149: 2443 | E149: 0 | F149: 2020 | G149: 160 | H149: 0 | I149: 28 | J149: 0 | K149: 0 | L149: 4 | M149: 0 | N149: 0 | O149: 231 | P149: 6.36
A150: 2021-04-07 | B150: 02:00:00 | C150: 442930.0833333333333333 | D150: 2444 | E150: 0 | F150: 2062 | G150: 163 | H150: 0 | I150: 28 | J150: 0 | K150: 0 | L150: 4 | M150: 0 | N150: 0 | O150: 187 | P150: 7.315
A151: 2021-04-07 | B151: 03:00:00 | C151: 442930.125 | D151: 2468 | E151: 0 | F151: 2058 | G151: 167 | H151: 0 | I151: 28 | J151: 0 | K151: 0 | L151: 3 | M151: 0 | N151: 0 | O151: 212 | P151: 7.37
A152: 2021-04-07 | B152: 04:00:00 | C152: 442930.166666666666667 | D152: 2509 | E152: 0 | F152: 2074 | G152: 162 | H152: 0 | I152: 28 | J152: 0 | K152: 0 | L152: 4 | M152: 0 | N152: 17 | O152: 224 | P152: 7.395
A153: 2021-04-07 | B153: 05:00:00 | C153: 442930.208333333333333 | D153: 2583 | E153: 0 | F153: 2134 | G153: 163 | H153: 0 | I153: 28 | J153: 4 | K153: 0 | L153: 5 | M153: 0 | N153: 20 | O153: 229 | P153: 6.97
A154: 2021-04-07 | B154: 06:00:00 | C154: 442930.25 | D154: 2704 | E154: 0 | F154: 2171 | G154: 161 | H154: 0 | I154: 28 | J154: 117 | K154: 0 | L154: 4 | M154: 0 | N154: 21 | O154: 202 | P154: 5.48
A155: 2021-04-07 | B155: 07:00:00 | C155: 442930.291666666666667 | D155: 2838 | E155: 0 | F155: 1944 | G155: 167 | H155: 0 | I155: 28 | J155: 402 | K155: 0 | L155: 4 | M155: 0 | N155: -1 | O155: 294 | P155: 5.125
A156: 2021-04-07 | B156: 08:00:00 | C156: 442930.333333333333333 | D156: 3081 | E156: 0 | F156: 1841 | G156: 182 | H156: 0 | I156: 28 | J156: 776 | K156: 0 | L156: 5 | M156: 0 | N156: -87 | O156: 336 | P156: 4.985
A157: 2021-04-07 | B157: 09:00:00 | C157: 442930.375 | D157: 3283 | E157: 0 | F157: 1763 | G157: 170 | H157: 0 | I157: 28 | J157: 1071 | K157: 0 | L157: 6 | M157: 0 | N157: -131 | O157: 376 | P157: 4.655
A158: 2021-04-07 | B158: 10:00:00 | C158: 442930.416666666666667 | D158: 3354 | E158: 0 | F158: 1772 | G158: 168 | H158: 0 | I158: 28 | J158: 1259 | K158: 0 | L158: 6 | M158: 0 | N158: -262 | O158: 383 | P158: 4.295
A159: 2021-04-07 | B159: 11:00:00 | C159: 442930.458333333333333 | D159: 3376 | E159: 0 | F159: 1787 | G159: 165 | H159: 0 | I159: 27 | J159: 1335 | K159: 0 | L159: 5 | M159: 0 | N159: -360 | O159: 417 | P159: 2
A160: 2021-04-07 | B160: 12:00:00 | C160: 442930.5 | D160: 3255 | E160: 0 | F160: 1791 | G160: 143 | H160: 0 | I160: 27 | J160: 1322 | K160: 0 | L160: 6 | M160: 0 | N160: -465 | O160: 431 | P160: 4.31
A161: 2021-04-07 | B161: 13:00:00 | C161: 442930.541666666666667 | D161: 3303 | E161: 0 | F161: 1797 | G161: 152 | H161: 0 | I161: 27 | J161: 1206 | K161: 0 | L161: 7 | M161: 0 | N161: -316 | O161: 430 | P161: 4.85
A162: 2021-04-07 | B162: 14:00:00 | C162: 442930.583333333333333 | D162: 3242 | E162: 0 | F162: 1854 | G162: 155 | H162: 0 | I162: 27 | J162: 985 | K162: 0 | L162: 8 | M162: 0 | N162: -129 | O162: 342 | P162: 5.435
A163: 2021-04-07 | B163: 15:00:00 | C163: 442930.625 | D163: 3196 | E163: 0 | F163: 2006 | G163: 161 | H163: 0 | I163: 27 | J163: 682 | K163: 0 | L163: 9 | M163: 0 | N163: -51 | O163: 362 | P163: 7.37
A164: 2021-04-07 | B164: 16:00:00 | C164: 442930.666666666666667 | D164: 3203 | E164: 0 | F164: 2223 | G164: 174 | H164: 0 | I164: 27 | J164: 339 | K164: 0 | L164: 11 | M164: 0 | N164: 157 | O164: 272 | P164: 8.46
A165: 2021-04-07 | B165: 17:00:00 | C165: 442930.708333333333333 | D165: 3192 | E165: 0 | F165: 2367 | G165: 182 | H165: 0 | I165: 28 | J165: 72 | K165: 0 | L165: 10 | M165: 0 | N165: 342 | O165: 191 | P165: 9.71
A166: 2021-04-07 | B166: 18:00:00 | C166: 442930.75 | D166: 3302 | E166: 0 | F166: 2425 | G166: 185 | H166: 0 | I166: 28 | J166: 0 | K166: 0 | L166: 8 | M166: 0 | N166: 434 | O166: 222 | P166: 8.225
A167: 2021-04-07 | B167: 19:00:00 | C167: 442930.791666666666667 | D167: 3253 | E167: 0 | F167: 2427 | G167: 182 | H167: 0 | I167: 28 | J167: 0 | K167: 0 | L167: 10 | M167: 0 | N167: 336 | O167: 270 | P167: 7.425
A168: 2021-04-07 | B168: 20:00:00 | C168: 442930.833333333333333 | D168: 3140 | E168: 0 | F168: 2555 | G168: 172 | H168: 0 | I168: 28 | J168: 0 | K168: 0 | L168: 10 | M168: 0 | N168: 111 | O168: 264 | P168: 7.08
A169: 2021-04-07 | B169: 21:00:00 | C169: 442930.875 | D169: 2975 | E169: 0 | F169: 2450 | G169: 167 | H169: 0 | I169: 28 | J169: 0 | K169: 0 | L169: 9 | M169: 0 | N169: 20 | O169: 301 | P169: 7.39
A170: 2021-04-07 | B170: 22:00:00 | C170: 442930.916666666666667 | D170: 2837 | E170: 0 | F170: 2324 | G170: 154 | H170: 0 | I170: 27 | J170: 0 | K170: 0 | L170: 10 | M170: 0 | N170: 0 | O170: 322 | P170: 7.055
A171: 2021-04-07 | B171: 23:00:00 | C171: 442930.958333333333333 | D171: 2675 | E171: 0 | F171: 2168 | G171: 143 | H171: 0 | I171: 27 | J171: 0 | K171: 0 | L171: 11 | M171: 0 | N171: 0 | O171: 326 | P171: 6.075
A172: 2021-04-08 | B172: 00:00:00 | C172: 442940 | D172: 2473 | E172: 0 | F172: 2037 | G172: 151 | H172: 0 | I172: 27 | J172: 0 | K172: 0 | L172: 12 | M172: 0 | N172: 0 | O172: 246 | P172: 5.71
A173: 2021-04-08 | B173: 01:00:00 | C173: 442940.0416666666666667 | D173: 2384 | E173: 0 | F173: 1979 | G173: 151 | H173: 0 | I173: 27 | J173: 0 | K173: 0 | L173: 11 | M173: 0 | N173: 0 | O173: 216 | P173: 6.36
A174: 2021-04-08 | B174: 02:00:00 | C174: 442940.0833333333333333 | D174: 2389 | E174: 0 | F174: 1993 | G174: 152 | H174: 0 | I174: 27 | J174: 0 | K174: 0 | L174: 11 | M174: 0 | N174: 0 | O174: 206 | P174: 6.42
A175: 2021-04-08 | B175: 03:00:00 | C175: 442940.125 | D175: 2425 | E175: 0 | F175: 2031 | G175: 151 | H175: 0 | I175: 27 | J175: 0 | K175: 0 | L175: 13 | M175: 0 | N175: 0 | O175: 203 | P175: 7.345
A176: 2021-04-08 | B176: 04:00:00 | C176: 442940.166666666666667 | D176: 2472 | E176: 0 | F176: 2073 | G176: 141 | H176: 0 | I176: 27 | J176: 0 | K176: 0 | L176: 14 | M176: 0 | N176: 0 | O176: 217 | P176: 7.4
A177: 2021-04-08 | B177: 05:00:00 | C177: 442940.208333333333333 | D177: 2554 | E177: 0 | F177: 2172 | G177: 143 | H177: 0 | I177: 27 | J177: 4 | K177: 0 | L177: 16 | M177: 0 | N177: 0 | O177: 192 | P177: 7.26
A178: 2021-04-08 | B178: 06:00:00 | C178: 442940.25 | D178: 2686 | E178: 0 | F178: 2111 | G178: 143 | H178: 0 | I178: 27 | J178: 113 | K178: 0 | L178: 15 | M178: 0 | N178: 0 | O178: 277 | P178: 6.035
A179: 2021-04-08 | B179: 07:00:00 | C179: 442940.291666666666667 | D179: 2806 | E179: 0 | F179: 1858 | G179: 150 | H179: 0 | I179: 27 | J179: 368 | K179: 0 | L179: 12 | M179: 0 | N179: -4 | O179: 395 | P179: 5.23
A180: 2021-04-08 | B180: 08:00:00 | C180: 442940.333333333333333 | D180: 3058 | E180: 0 | F180: 1910 | G180: 169 | H180: 0 | I180: 27 | J180: 712 | K180: 0 | L180: 10 | M180: 0 | N180: -57 | O180: 287 | P180: 5.29
A181: 2021-04-08 | B181: 09:00:00 | C181: 442940.375 | D181: 3273 | E181: 0 | F181: 1851 | G181: 167 | H181: 0 | I181: 27 | J181: 1000 | K181: 0 | L181: 9 | M181: 0 | N181: -65 | O181: 284 | P181: 5.12
A182: 2021-04-08 | B182: 10:00:00 | C182: 442940.416666666666667 | D182: 3354 | E182: 0 | F182: 1817 | G182: 159 | H182: 0 | I182: 27 | J182: 1195 | K182: 0 | L182: 8 | M182: 0 | N182: -180 | O182: 328 | P182: 5.06
A183: 2021-04-08 | B183: 11:00:00 | C183: 442940.458333333333333 | D183: 3394 | E183: 0 | F183: 1801 | G183: 152 | H183: 0 | I183: 27 | J183: 1235 | K183: 0 | L183: 7 | M183: 0 | N183: -243 | O183: 415 | P183: 4.75
A184: 2021-04-08 | B184: 12:00:00 | C184: 442940.5 | D184: 3244 | E184: 0 | F184: 1782 | G184: 140 | H184: 0 | I184: 27 | J184: 1155 | K184: 0 | L184: 6 | M184: 0 | N184: -339 | O184: 473 | P184: 5.28
A185: 2021-04-08 | B185: 13:00:00 | C185: 442940.541666666666667 | D185: 3338 | E185: 0 | F185: 1827 | G185: 138 | H185: 0 | I185: 27 | J185: 1043 | K185: 0 | L185: 5 | M185: 0 | N185: -118 | O185: 416 | P185: 5.785
A186: 2021-04-08 | B186: 14:00:00 | C186: 442940.583333333333333 | D186: 3313 | E186: 0 | F186: 1968 | G186: 143 | H186: 0 | I186: 27 | J186: 822 | K186: 0 | L186: 5 | M186: 0 | N186: -2 | O186: 350 | P186: 6.05
A187: 2021-04-08 | B187: 15:00:00 | C187: 442940.625 | D187: 3284 | E187: 0 | F187: 2239 | G187: 152 | H187: 0 | I187: 27 | J187: 541 | K187: 0 | L187: 6 | M187: 0 | N187: 66 | O187: 253 | P187: 7.35
A188: 2021-04-08 | B188: 16:00:00 | C188: 442940.666666666666667 | D188: 3272 | E188: 0 | F188: 2405 | G188: 168 | H188: 0 | I188: 28 | J188: 238 | K188: 0 | L188: 6 | M188: 0 | N188: 146 | O188: 281 | P188: 8.74
A189: 2021-04-08 | B189: 17:00:00 | C189: 442940.708333333333333 | D189: 3261 | E189: 0 | F189: 2575 | G189: 179 | H189: 0 | I189: 28 | J189: 45 | K189: 0 | L189: 6 | M189: 0 | N189: 178 | O189: 250 | P189: 10.075
A190: 2021-04-08 | B190: 18:00:00 | C190: 442940.75 | D190: 3372 | E190: 0 | F190: 2693 | G190: 182 | H190: 0 | I190: 28 | J190: 0 | K190: 0 | L190: 7 | M190: 0 | N190: 259 | O190: 203 | P190: 9.97
A191: 2021-04-08 | B191: 19:00:00 | C191: 442940.791666666666667 | D191: 3305 | E191: 0 | F191: 2699 | G191: 181 | H191: 0 | I191: 28 | J191: 0 | K191: 0 | L191: 6 | M191: 0 | N191: 171 | O191: 220 | P191: 8.715
A192: 2021-04-08 | B192: 20:00:00 | C192: 442940.833333333333333 | D192: 3174 | E192: 0 | F192: 2617 | G192: 168 | H192: 0 | I192: 28 | J192: 0 | K192: 0 | L192: 6 | M192: 0 | N192: 76 | O192: 279 | P192: 8
A193: 2021-04-08 | B193: 21:00:00 | C193: 442940.875 | D193: 3005 | E193: 0 | F193: 2525 | G193: 158 | H193: 0 | I193: 28 | J193: 0 | K193: 0 | L193: 6 | M193: 0 | N193: 19 | O193: 269 | P193: 7.715
A194: 2021-04-08 | B194: 22:00:00 | C194: 442940.916666666666667 | D194: 2847 | E194: 0 | F194: 2436 | G194: 142 | H194: 0 | I194: 27 | J194: 0 | K194: 0 | L194: 8 | M194: 0 | N194: 0 | O194: 234 | P194: 7.4
A195: 2021-04-08 | B195: 23:00:00 | C195: 442940.958333333333333 | D195: 2687 | E195: 0 | F195: 2312 | G195: 133 | H195: 0 | I195: 27 | J195: 0 | K195: 0 | L195: 9 | M195: 0 | N195: 0 | O195: 206 | P195: 6.5
A196: 2021-04-09 | B196: 00:00:00 | C196: 442950 | D196: 2488 | E196: 0 | F196: 2059 | G196: 139 | H196: 0 | I196: 27 | J196: 0 | K196: 0 | L196: 15 | M196: 0 | N196: 0 | O196: 248 | P196: 6.055
A197: 2021-04-09 | B197: 01:00:00 | C197: =A197&B197 -> 442950.0416666666666667 | D197: 2405 | E197: 0 | F197: 2041 | G197: 144 | H197: 0 | I197: 27 | J197: 0 | K197: 0 | L197: 17 | M197: 0 | N197: 0 | O197: 176 | P197: 6.81
A198: 2021-04-09 | B198: 02:00:00 | C198: 442950.0833333333333333 | D198: 2408 | E198: 0 | F198: 2038 | G198: 148 | H198: 0 | I198: 27 | J198: 0 | K198: 0 | L198: 18 | M198: 0 | N198: 0 | O198: 177 | P198: 7.315
A199: 2021-04-09 | B199: 03:00:00 | C199: 442950.125 | D199: 2450 | E199: 0 | F199: 2086 | G199: 147 | H199: 0 | I199: 27 | J199: 0 | K199: 0 | L199: 19 | M199: 0 | N199: 0 | O199: 171 | P199: 7.385
A200: 2021-04-09 | B200: 04:00:00 | C200: 442950.166666666666667 | D200: 2505 | E200: 0 | F200: 2165 | G200: 137 | H200: 0 | I200: 27 | J200: 0 | K200: 0 | L200: 18 | M200: 0 | N200: 0 | O200: 158 | P200: 7.76
... 4300 more rows
